fUSD/lending_fUSD_20240706
["ID","MTS","AMOUNT","RATE_DAILY","PERIOD"]
[331327734,1720236633369,-25117.29,0.00018668,2]
[331327735,1720236633378,-174.81,0.00018684,2]
[331327736,1720236633388,-1142.24899341,0.00018717,2]
[331327737,1720236633416,-898.23961645,0.00018739,2]
[331327738,1720236633439,-1266.52838493,0.00018759,2]
[331327739,1720236633451,-1000.0,0.00018775,2]
[331327740,1720236633461,-208.91,0.00018796,2]
[331327741,1720236633471,-243.0,0.00018814,2]
[331327742,1720236633484,-10000.0,0.00018815,2]
[331327743,1720236633496,-23890.0,0.00018815,2]
[331327744,1720236633506,-2751.0,0.00018824,2]
[331327745,1720236633516,-721.36501093,0.00018835,2]
[331327746,1720236633525,-174.33,0.00018849,30]
[331327747,1720236633538,-299.99,0.00018849,4]
[331327748,1720236633547,-208.9617345,0.00018864,2]
[331327749,1720236633557,-235.30745469,0.00018864,2]
[331327750,1720236633571,-301.26167082,0.00018864,2]
[331327751,1720236633581,-200.0,0.00018896,2]
[331327752,1720236633591,-660.33561149,0.00018899,2]
[331327753,1720236633600,-483.68385979,0.00018899,2]
[331327754,1720236633610,-161.28365791,0.00018899,2]
[331327755,1720236633621,-163.63235046,0.00018899,2]
[331327756,1720236633631,-155.39524422,0.00018899,2]
[331327757,1720236633641,-201.18912549,0.00018899,2]
[331327758,1720236633651,-366.62612521,0.00018899,2]
[331327759,1720236633661,-161.73331336,0.00018899,2]
[331327760,1720236633671,-155.51957963,0.00018919,2]
[331327761,1720236633681,-155.57607188,0.00018919,2]
[331327762,1720236633693,-269.66585557,0.00018919,2]
[331327763,1720236633704,-181.11425746,0.00018919,2]
[331327764,1720236633714,-155.61541688,0.00018919,2]
[331327765,1720236633725,-188.85691941,0.00018919,2]
[331327766,1720236633742,-218.4586013,0.00018919,2]
[331327767,1720236633752,-209.22550452,0.00018919,2]
[331327768,1720236633763,-158.31418936,0.00018999,2]
[331327769,1720236633775,-156.24002164,0.00018999,2]
[331327770,1720236633786,-155.61662329,0.00018999,2]
[331327771,1720236633796,-220.7400091,0.00018999,2]
[331327772,1720236633807,-333.87404802,0.00018999,2]
[331327773,1720236633816,-163.998128,0.00018999,2]
[331327774,1720236633826,-5000.0,0.00019,2]
[331327775,1720236633836,-227.19964772,0.00019069,2]
[331327776,1720236633846,-2136.67,0.00019152,2]
[331327777,1720236633856,-250.0,0.00019178,2]
[331327778,1720236633865,-250.0,0.00019279,2]
[331327779,1720236633875,-155.82314772,0.00019299,2]
[331327780,1720236633885,-365.52890331,0.0001935,2]
[331327781,1720236633894,-365.26443049,0.00019399,2]
[331327782,1720236633904,-440.79159944,0.00019451,2]
[331327783,1720236633915,-268.46314128,0.00019725,2]
[331327784,1720236633925,-2156.0,0.000198,3]
[331327785,1720236633935,-1000.0,0.00019959,2]
[331327786,1720236633945,-833.49803925,0.00019964,2]
[331327787,1720236633956,-418.33540216,0.0001999,2]
[331327788,1720236633965,-1250.0,0.0002,2]
[331327789,1720236633975,-2500.0,0.000203,2]
[331327790,1720236633986,-1000.0,0.00020303,2]
[331327791,1720236633995,-1047.63348597,0.0002058,2]
[331327792,1720236634006,-1068.27331707,0.0002058,2]
[331327793,1720236634015,-1115.31025925,0.0002058,2]
[331327794,1720236634025,-390.72197352,0.0002062,2]
[331327795,1720236634034,-67328.99653226,0.0002079,2]
[331327796,1720236634049,-181.76474847,0.00020889,2]
[331327797,1720236634060,-263.61315764,0.0002089,2]
[331327798,1720236634070,-2373.4398,0.0002089,2]
[331327799,1720236634080,-299.7934,0.000209,2]
[331327800,1720236634090,-160.8988254,0.000209,2]
[331327801,1720236634099,-171.47804093,0.000209,2]
[331327802,1720236634109,-219.82193953,0.000209,2]
[331327803,1720236634122,-165.88,0.0002097,2]
[331327804,1720236634133,-165.88,0.00020979,2]
[331327805,1720236634142,-122438.31817944,0.0002098,3]
[331327806,1720236634157,-361.36554768,0.0002098,3]
[331327807,1720236634170,-455.94522447,0.0002098,3]
[331327808,1720236634182,-1722.63024292,0.0002098,3]
[331327809,1720236634195,-597.59958667,0.0002098,3]
[331327810,1720236634209,-11038.91143297,0.0002098,3]
[331327811,1720236634225,-1483.10144285,0.0002098,3]
[331327812,1720236634237,-208.08516281,0.0002098,2]
[331327813,1720236634248,-8631.11697857,0.00020989,3]
[331327814,1720236634258,-500.0,0.00020989,2]
[331327815,1720236634270,-5102.88095463,0.0002099,3]
[331327816,1720236634282,-1798.17271157,0.0002099,3]
[331327817,1720236643365,-701.89106013,0.00019354,2]
[331327819,1720236643376,-572.24997988,0.00019354,2]
[331327821,1720236643386,-482.19494434,0.00019725,2]
[331327823,1720236643396,-327.38876842,0.0002089,2]
[331327825,1720236643406,-423.73539232,0.000209,2]
[331327827,1720236643415,-165.88,0.0002098,2]
[331327829,1720236643425,-165.88,0.0002098,2]
[331327831,1720236643434,-154.56,0.0002098,2]
[331327833,1720236643444,-244.97177959,0.00020989,2]
[331327834,1720236643453,-4232.065367,0.0002099,3]
[331327836,1720236644575,-22256.41329664,0.0002099,3]
[331327837,1720236644586,-2128.76516817,0.0002099,3]
[331327838,1720236645979,-262.25,0.00018563,2]
[331327839,1720236645988,-63651.08391617,0.0002099,3]
[331327862,1720236650931,-1031.74069502,0.0002057,2]
[331327863,1720236650940,-262.25,0.00020826,2]
[331327864,1720236650950,-13035.13930682,0.0002099,3]
[331327865,1720236650960,-166809.127602,0.0002099,3]
[331327866,1720236650970,-617.47644414,0.00020999,2]
[331327867,1720236650981,-500.0,0.00020999,2]
[331327868,1720236650991,-490.2703738,0.00020999,2]
[331327869,1720236651002,-59132.41858751,0.00021,2]
[331327870,1720236651012,-882.7315401,0.00021,2]
[331327871,1720236651021,-1000.7025567,0.00021,2]
[331327872,1720236651030,-339.70278619,0.00021,7]
[331327873,1720236651040,-448.37887268,0.00021,2]
[331327874,1720236651054,-225.36861188,0.00021,2]
[331327875,1720236651064,-292.25295945,0.00021,2]
[331327876,1720236651073,-269874.80493201,0.00021,2]
[331327877,1720236651083,-1057.31793875,0.00021,2]
[331327878,1720236651094,-8285.86057397,0.00021,2]
[331327879,1720236651103,-500.0,0.00021,2]
[331327880,1720236651113,-500.0,0.00021,2]
[331327881,1720236651125,-500.0,0.00021,2]
[331327882,1720236651134,-500.0,0.00021,2]
[331327883,1720236651144,-500.0,0.00021,2]
[331327884,1720236651153,-500.0,0.00021,2]
[331327885,1720236651163,-500.0,0.00021,2]
[331327886,1720236651172,-500.0,0.00021,2]
[331327887,1720236651182,-500.0,0.00021,2]
[331327888,1720236651191,-500.0,0.00021,2]
[331327889,1720236651200,-500.0,0.00021,2]
[331327890,1720236651210,-500.0,0.00021,2]
[331327891,1720236651220,-500.0,0.00021,2]
[331327892,1720236651229,-500.0,0.00021,2]
[331327893,1720236651239,-500.0,0.00021,2]
[331327894,1720236651248,-500.0,0.00021,2]
[331327895,1720236651259,-500.0,0.00021,2]
[331327896,1720236651268,-500.0,0.00021,2]
[331327897,1720236651279,-500.0,0.00021,2]
[331327898,1720236651288,-500.0,0.00021,2]
[331327899,1720236651298,-500.0,0.00021,2]
[331327900,1720236651308,-500.0,0.00021,2]
[331327901,1720236651317,-500.0,0.00021,2]
[331327902,1720236651327,-500.0,0.00021,2]
[331327903,1720236651336,-500.0,0.00021,2]
[331327904,1720236651345,-500.0,0.00021,2]
[331327905,1720236651354,-500.0,0.00021,2]
[331327906,1720236651364,-500.0,0.00021,2]
[331327907,1720236651378,-500.0,0.00021,2]
[331327908,1720236651390,-500.0,0.00021,2]
[331327909,1720236651400,-500.0,0.00021,2]
[331327910,1720236651410,-500.0,0.00021,2]
[331327911,1720236651420,-500.0,0.00021,2]
[331327912,1720236651429,-500.0,0.00021,2]
[331327913,1720236651439,-500.0,0.00021,2]
[331327914,1720236651448,-500.0,0.00021,2]
[331327915,1720236651458,-500.0,0.00021,2]
[331327916,1720236651468,-500.0,0.00021,2]
[331327917,1720236651478,-500.0,0.00021,2]
[331327918,1720236651487,-500.0,0.00021,2]
[331327919,1720236651496,-500.0,0.00021,2]
[331327920,1720236651508,-500.0,0.00021,2]
[331327921,1720236651518,-500.0,0.00021,2]
[331327922,1720236651528,-500.0,0.00021,2]
[331327923,1720236651537,-500.0,0.00021,2]
[331327924,1720236651547,-500.0,0.00021,2]
[331327925,1720236651556,-500.0,0.00021,2]
[331327926,1720236651565,-500.0,0.00021,2]
[331327927,1720236651576,-500.0,0.00021,2]
[331327928,1720236651586,-500.0,0.00021,2]
[331327929,1720236651595,-500.0,0.00021,2]
[331327930,1720236651605,-500.0,0.00021,2]
[331327931,1720236651614,-500.0,0.00021,2]
[331327932,1720236651623,-500.0,0.00021,2]
[331327933,1720236651632,-500.0,0.00021,2]
[331327934,1720236651642,-500.0,0.00021,2]
[331327935,1720236651653,-500.0,0.00021,2]
[331327936,1720236651662,-500.0,0.00021,2]
[331327937,1720236651672,-500.0,0.00021,2]
[331327938,1720236651681,-500.0,0.00021,2]
[331327939,1720236651692,-500.0,0.00021,2]
[331327940,1720236651701,-500.0,0.00021,2]
[331327941,1720236651710,-500.0,0.00021,2]
[331327942,1720236651720,-500.0,0.00021,2]
[331327943,1720236651732,-500.0,0.00021,2]
[331327944,1720236651742,-500.0,0.00021,2]
[331327945,1720236651754,-500.0,0.00021,2]
[331327946,1720236651763,-500.0,0.00021,2]
[331327947,1720236651772,-500.0,0.00021,2]
[331327948,1720236651782,-500.0,0.00021,2]
[331327949,1720236651792,-500.0,0.00021,2]
[331327950,1720236651803,-500.0,0.00021,2]
[331327951,1720236651813,-500.0,0.00021,2]
[331327952,1720236651823,-500.0,0.00021,2]
[331327953,1720236651832,-500.0,0.00021,2]
[331327954,1720236651842,-500.0,0.00021,2]
[331327955,1720236651851,-500.0,0.00021,2]
[331327956,1720236651860,-500.0,0.00021,2]
[331327957,1720236651871,-500.0,0.00021,2]
[331327958,1720236651880,-500.0,0.00021,2]
[331327959,1720236651891,-500.0,0.00021,2]
[331327960,1720236651900,-500.0,0.00021,2]
[331327961,1720236651909,-500.0,0.00021,2]
[331327962,1720236651918,-500.0,0.00021,2]
[331327963,1720236651927,-500.0,0.00021,2]
[331327964,1720236651937,-500.0,0.00021,2]
[331327965,1720236651947,-500.0,0.00021,2]
[331327966,1720236651957,-500.0,0.00021,2]
[331327967,1720236651967,-500.0,0.00021,2]
[331327968,1720236651977,-500.0,0.00021,2]
[331327969,1720236651986,-500.0,0.00021,2]
[331327970,1720236651996,-500.0,0.00021,2]
[331327971,1720236652006,-500.0,0.00021,2]
[331327972,1720236652016,-500.0,0.00021,2]
[331327973,1720236652025,-500.0,0.00021,2]
[331327974,1720236652036,-500.0,0.00021,2]
[331327975,1720236652048,-500.0,0.00021,2]
[331327976,1720236652061,-500.0,0.00021,2]
[331327977,1720236652073,-500.0,0.00021,2]
[331327978,1720236652092,-500.0,0.00021,2]
[331327979,1720236652126,-500.0,0.00021,2]
[331327980,1720236652138,-500.0,0.00021,2]
[331327981,1720236652148,-500.0,0.00021,2]
[331327982,1720236652158,-500.0,0.00021,2]
[331327983,1720236652168,-500.0,0.00021,2]
[331327984,1720236652180,-500.0,0.00021,2]
[331327985,1720236652189,-500.0,0.00021,2]
[331327986,1720236652199,-500.0,0.00021,2]
[331327987,1720236652210,-500.0,0.00021,2]
[331327988,1720236652220,-500.0,0.00021,2]
[331327989,1720236652230,-500.0,0.00021,2]
[331327990,1720236652240,-500.0,0.00021,2]
[331327991,1720236652252,-500.0,0.00021,2]
[331327992,1720236652262,-500.0,0.00021,2]
[331327993,1720236652272,-500.0,0.00021,2]
[331327994,1720236652285,-500.0,0.00021,2]
[331327995,1720236652296,-500.0,0.00021,2]
[331327996,1720236652307,-500.0,0.00021,2]
[331327997,1720236652318,-500.0,0.00021,2]
[331327998,1720236652327,-500.0,0.00021,2]
[331327999,1720236652338,-500.0,0.00021,2]
[331328000,1720236652350,-500.0,0.00021,2]
[331328001,1720236652361,-500.0,0.00021,2]
[331328002,1720236652372,-500.0,0.00021,2]
[331328003,1720236652382,-500.0,0.00021,2]
[331328004,1720236652393,-500.0,0.00021,2]
[331328005,1720236652403,-500.0,0.00021,2]
[331328006,1720236652414,-500.0,0.00021,2]
[331328007,1720236652425,-500.0,0.00021,2]
[331328008,1720236652435,-500.0,0.00021,2]
[331328009,1720236652445,-500.0,0.00021,2]
[331328010,1720236652454,-500.0,0.00021,2]
[331328011,1720236652464,-500.0,0.00021,2]
[331328012,1720236652473,-500.0,0.00021,2]
[331328013,1720236652484,-500.0,0.00021,2]
[331328014,1720236652494,-500.0,0.00021,2]
[331328015,1720236652504,-500.0,0.00021,2]
[331328016,1720236652514,-500.0,0.00021,2]
[331328017,1720236652523,-500.0,0.00021,2]
[331328018,1720236652533,-500.0,0.00021,2]
[331328019,1720236652544,-500.0,0.00021,2]
[331328020,1720236652555,-500.0,0.00021,2]
[331328021,1720236652566,-500.0,0.00021,2]
[331328022,1720236652577,-500.0,0.00021,2]
[331328023,1720236652588,-500.0,0.00021,2]
[331328024,1720236652598,-500.0,0.00021,2]
[331328025,1720236652608,-500.0,0.00021,2]
[331328026,1720236652618,-500.0,0.00021,2]
[331328027,1720236652627,-500.0,0.00021,2]
[331328028,1720236652637,-500.0,0.00021,2]
[331328029,1720236652647,-500.0,0.00021,2]
[331328030,1720236652656,-500.0,0.00021,2]
[331328031,1720236652665,-500.0,0.00021,2]
[331328032,1720236652675,-500.0,0.00021,2]
[331328033,1720236652685,-500.0,0.00021,2]
[331328034,1720236652695,-500.0,0.00021,2]
[331328035,1720236652704,-500.0,0.00021,2]
[331328036,1720236652714,-500.0,0.00021,2]
[331328037,1720236652724,-500.0,0.00021,2]
[331328038,1720236652733,-500.0,0.00021,2]
[331328039,1720236652742,-500.0,0.00021,2]
[331328040,1720236652753,-500.0,0.00021,2]
[331328041,1720236652762,-500.0,0.00021,2]
[331328042,1720236652771,-500.0,0.00021,2]
[331328043,1720236652781,-500.0,0.00021,2]
[331328044,1720236652791,-500.0,0.00021,2]
[331328045,1720236652800,-500.0,0.00021,2]
[331328046,1720236652810,-500.0,0.00021,2]
[331328047,1720236652819,-500.0,0.00021,2]
[331328048,1720236652828,-500.0,0.00021,2]
[331328049,1720236652837,-500.0,0.00021,2]
[331328050,1720236652846,-500.0,0.00021,2]
[331328051,1720236652855,-500.0,0.00021,2]
[331328052,1720236652865,-500.0,0.00021,2]
[331328053,1720236652874,-500.0,0.00021,2]
[331328054,1720236652883,-500.0,0.00021,2]
[331328055,1720236652893,-500.0,0.00021,2]
[331328056,1720236652903,-500.0,0.00021,2]
[331328057,1720236652912,-500.0,0.00021,2]
[331328058,1720236652921,-500.0,0.00021,2]
[331328059,1720236652931,-500.0,0.00021,2]
[331328060,1720236652941,-500.0,0.00021,2]
[331328061,1720236652951,-500.0,0.00021,2]
[331328062,1720236652963,-500.0,0.00021,2]
[331328063,1720236652981,-500.0,0.00021,2]
[331328064,1720236652991,-500.0,0.00021,2]
[331328065,1720236653000,-500.0,0.00021,2]
[331328066,1720236653013,-500.0,0.00021,2]
[331328067,1720236653024,-500.0,0.00021,2]
[331328068,1720236653038,-500.0,0.00021,2]
[331328069,1720236653051,-500.0,0.00021,2]
[331328070,1720236653075,-500.0,0.00021,2]
[331328071,1720236653089,-500.0,0.00021,2]
[331328072,1720236653102,-500.0,0.00021,2]
[331328073,1720236653116,-500.0,0.00021,2]
[331328074,1720236653127,-500.0,0.00021,2]
[331328075,1720236653143,-500.0,0.00021,2]
[331328076,1720236653156,-500.0,0.00021,2]
[331328077,1720236653170,-500.0,0.00021,2]
[331328078,1720236653180,-500.0,0.00021,2]
[331328079,1720236653192,-500.0,0.00021,2]
[331328080,1720236653201,-500.0,0.00021,2]
[331328081,1720236653212,-203.48926,0.00021,2]
[331328082,1720236653222,-1745.76375,0.00021,2]
[331328083,1720236653232,-500.0,0.00021,2]
[331328084,1720236653242,-500.0,0.00021,2]
[331328085,1720236653255,-500.0,0.00021,2]
[331328086,1720236653265,-500.0,0.00021,2]
[331328087,1720236653275,-500.0,0.00021,2]
[331328088,1720236653287,-500.0,0.00021,2]
[331328089,1720236653297,-500.0,0.00021,2]
[331328090,1720236653308,-500.0,0.00021,2]
[331328091,1720236653318,-500.0,0.00021,2]
[331328092,1720236653328,-500.0,0.00021,2]
[331328093,1720236653338,-500.0,0.00021,2]
[331328094,1720236653348,-500.0,0.00021,2]
[331328095,1720236653358,-500.0,0.00021,2]
[331328096,1720236653369,-500.0,0.00021,2]
[331328097,1720236653378,-500.0,0.00021,2]
[331328098,1720236653388,-500.0,0.00021,2]
[331328099,1720236653398,-500.0,0.00021,2]
[331328100,1720236653408,-500.0,0.00021,2]
[331328101,1720236653418,-500.0,0.00021,2]
[331328102,1720236653428,-500.0,0.00021,2]
[331328103,1720236653438,-500.0,0.00021,2]
[331328104,1720236653447,-500.0,0.00021,2]
[331328105,1720236653457,-500.0,0.00021,2]
[331328106,1720236653467,-500.0,0.00021,2]
[331328107,1720236653477,-500.0,0.00021,2]
[331328108,1720236653486,-500.0,0.00021,2]
[331328109,1720236653496,-500.0,0.00021,2]
[331328110,1720236653506,-500.0,0.00021,2]
[331328111,1720236653516,-500.0,0.00021,2]
[331328112,1720236653526,-500.0,0.00021,2]
[331328113,1720236653535,-164.95,0.00021104,2]
[331328114,1720236653545,-1000.0,0.00021122,2]
[331328115,1720236653556,-205.0,0.0002119,2]
[331328116,1720236653566,-164.95,0.0002121,2]
[331328117,1720236653576,-152.0,0.00021276,4]
[331328118,1720236653586,-160.98,0.0002137,2]
[331328119,1720236653598,-150.23,0.0002137,2]
[331328120,1720236653610,-150.0,0.0002137,2]
[331328121,1720236653620,-263.61315763,0.00021389,2]
[331328122,1720236653632,-180.0,0.00021397,2]
[331328123,1720236653642,-520.52,0.00021644,2]
[331328124,1720236653652,-292.69,0.00021644,2]
[331328125,1720236653663,-278.31377295,0.00021646,2]
[331328126,1720236653673,-152.0,0.00021685,5]
[331328127,1720236653683,-423.73539231,0.00021845,2]
[331328128,1720236653693,-2073.2750412,0.00021846,2]
[331328129,1720236653703,-263.61315763,0.00021887,2]
[331328130,1720236653714,-181.76474845,0.0002189,2]
[331328131,1720236653724,-328.13222234,0.00021906,2]
[331328132,1720236653734,-691.87,0.00021918,2]
[331328133,1720236653744,-150.0,0.00021918,2]
[331328134,1720236653754,-1300.0,0.00022,2]
[331328135,1720236653764,-152.0,0.00022093,6]
[331328136,1720236653774,-205.0,0.0002212,2]
[331328137,1720236653783,-329.8,0.00022192,2]
[331328138,1720236653794,-150.0,0.00022192,2]
[331328139,1720236653804,-150.0,0.00022192,2]
[331328140,1720236653814,-868.0,0.00022225,2]
[331328141,1720236653823,-263.61315763,0.00022386,2]
[331328142,1720236653833,-500.0,0.00022476,2]
[331328143,1720236653843,-150.0,0.00022495,2]
[331328144,1720236653854,-151.0,0.00022501,2]
[331328145,1720236653863,-152.0,0.00022501,7]
[331328146,1720236653873,-197.0,0.0002269,5]
[331328147,1720236653886,-1000.0,0.00022705,2]
[331328148,1720236653896,-150.0,0.00022719,2]
[331328149,1720236653906,-11120.6085068,0.0002277,3]
[331328150,1720236653916,-2546.2766595,0.00022777,2]
[331328151,1720236653926,-7500.0,0.0002278,2]
[331328152,1720236653936,-180.36505997,0.000228,2]
[331328153,1720236653946,-500.0,0.000228,2]
[331328154,1720236653956,-500.0,0.00022803,2]
[331328155,1720236653966,-200.0,0.00022803,2]
[331328156,1720236653976,-500.0,0.00022805,2]
[331328157,1720236653986,-15734.6741,0.00022874,2]
[331328158,1720236653996,-221.84,0.00022877,3]
[331328159,1720236654007,-11120.6085068,0.0002288,3]
[331328160,1720236654017,-150.0,0.00022884,2]
[331328161,1720236654027,-263.61315763,0.00022884,2]
[331328162,1720236654036,-180.36505996,0.0002289,2]
[331328163,1720236654048,-42630.31871958,0.0002289,3]
[331328164,1720236654071,-57455.15784142,0.0002289,3]
[331328165,1720236654081,-1748.64236676,0.0002289,2]
[331328166,1720236654092,-181.76474845,0.0002289,2]
[331328167,1720236654102,-12306.88655067,0.0002289,2]
[331328168,1720236654112,-407.53445747,0.0002289,4]
[331328169,1720236654122,-491.0,0.000229,5]
[331328170,1720236654134,-491.0,0.000229,5]
[331328171,1720236654143,-928.0,0.000229,2]
[331328172,1720236654153,-34360.44238449,0.000229,2]
[331328173,1720236654167,-3097.5075171,0.000229,2]
[331328174,1720236655168,-500.0,0.00021,2]
[331328175,1720236655178,-331.02728288,0.000229,2]
[331328176,1720236655190,-2248.7681727,0.000229,2]
[331328178,1720237351666,310.828487,0.00025,60]
[331328181,1720237424770,12641.59193279,0.00010179,2]
[331328182,1720237424798,35384.40806721,0.00010179,2]
[331328183,1720237488189,10000.0,0.00026,120]
[331328236,1720237835284,-300.0,0.00013689,2]
[331328238,1720237835295,-1760.7,0.0001369,2]
[331328239,1720237835307,-903.27086085,0.0001369,2]
[331328240,1720237835319,-501.08,0.0001369,2]
[331328241,1720237835330,-1000.0,0.0001369,2]
[331328242,1720237835342,-757.21613236,0.0001369,2]
[331328243,1720237835353,-388.88750137,0.0001369,2]
[331328249,1720237846726,-881.41107409,0.0001369,2]
[331328253,1720237846739,-14902.1630362,0.0001369,2]
[331328257,1720237846749,-72271.4441,0.000139,2]
[331328260,1720237846760,-200.0,0.000139,5]
[331328263,1720237846770,-203.79493447,0.00013907,2]
[331328266,1720237846781,-156.80521674,0.00013907,2]
[331328269,1720237846791,-211.86769616,0.00013907,2]
[331328271,1720237846800,-159.52704913,0.00013907,2]
[331328273,1720237846810,-167.88520026,0.00013907,2]
[331328275,1720237846820,-327.14283592,0.00013907,2]
[331328276,1720237846831,-150.0,0.00013973,2]
[331328277,1720237846842,-289.02897465,0.0001399,2]
[331328278,1720237846852,-264.63276177,0.00013999,2]
[331328279,1720237846861,-424.40158877,0.00013999,2]
[331328280,1720237846872,-936485.42776334,0.00014,2]
[331328281,1720237846882,-941.62,0.00014007,2]
[331328282,1720237846899,-614.0,0.00014007,2]
[331328283,1720237846909,-4146.85,0.00014007,2]
[331328284,1720237846918,-499.99,0.00014007,2]
[331328285,1720237846928,-500.0,0.000149,5]
[331328286,1720237846937,-220.31,0.00014904,2]
[331328287,1720237846947,-93208.29636635,0.00015,2]
[331328288,1720237846956,-420.0,0.00015002,2]
[331328289,1720237846966,-326.66,0.00015181,2]
[331328290,1720237846975,-156.80521673,0.00015355,2]
[331328291,1720237846985,-340.0,0.0001644,2]
[331328292,1720237846994,-156.80521673,0.00016804,2]
[331328293,1720237847004,-10000.0,0.00016828,2]
[331328294,1720237847013,-250.0,0.00016938,2]
[331328295,1720237847022,-500.0,0.00016957,2]
[331328296,1720237847031,-1720.91,0.00016963,2]
[331328297,1720237847040,-250.0,0.00016982,2]
[331328298,1720237847049,-1000.0,0.00017018,2]
[331328299,1720237847059,-12015.84,0.00017165,2]
[331328300,1720237847068,-362.018,0.00017172,2]
[331328301,1720237847078,-1846.945,0.00017172,2]
[331328302,1720237847087,-467.741,0.00017172,2]
[331328303,1720237847096,-166.995,0.00017172,2]
[331328304,1720237847106,-450.077,0.00017172,2]
[331328305,1720237847115,-817.164,0.00017172,2]
[331328306,1720237847125,-1156.422,0.00017172,2]
[331328307,1720237847134,-200.0,0.00017196,2]
[331328308,1720237847143,-1237.75,0.00017252,2]
[331328309,1720237847153,-326.66,0.00017444,2]
[331328310,1720237847163,-2751.0,0.00017713,2]
[331328311,1720237847174,-15463.32,0.00017934,2]
[331328312,1720237847184,-172.46,0.00017964,2]
[331328313,1720237847193,-501.81,0.00017985,2]
[331328314,1720237847203,-501.81,0.00018034,2]
[331328315,1720237847213,-833.49803925,0.00018081,2]
[331328316,1720237847224,-501.81,0.00018083,2]
[331328317,1720237847235,-501.81,0.00018133,2]
[331328318,1720237847246,-501.81,0.00018182,2]
[331328319,1720237847255,-501.81,0.00018231,2]
[331328320,1720237847264,-156.80521673,0.00018252,2]
[331328321,1720237847273,-501.81,0.00018281,2]
[331328322,1720237847283,-501.81,0.0001833,2]
[331328323,1720237847292,-501.81,0.00018379,2]
[331328324,1720237847303,-159.52704913,0.00018399,2]
[331328325,1720237847313,-501.81,0.00018428,2]
[331328326,1720237847323,-501.81,0.00018478,2]
[331328327,1720237847333,-501.81,0.00018527,2]
[331328328,1720237847342,-501.81,0.00018576,2]
[331328329,1720237847352,-152.36272025,0.00018616,2]
[331328330,1720237847361,-150.0,0.00018616,2]
[331328331,1720237847371,-501.81,0.00018626,2]
[331328332,1720237847387,-501.81,0.00018675,2]
[331328333,1720237847398,-501.81,0.00018724,2]
[331328365,1720237847743,-721.36501093,0.00018759,2]
[331328370,1720237847837,-1016.47627032,0.00018759,2]
[331328372,1720237847846,-501.81,0.00018774,2]
[331328374,1720237847856,-2520.72839817,0.00018778,2]
[331328376,1720237847866,-501.81,0.00018823,2]
[331328378,1720237847875,-2978.0574796,0.00018835,2]
[331328380,1720237847885,-549.80051246,0.00018835,2]
[331328382,1720237847895,-174.33,0.00018849,30]
[331328384,1720237847905,-319.28013051,0.00018864,2]